[Event "27th Kavala Open 2018"]
[Site "Kavala"]
[Date "2018.08.06"]
[Round "3"]
[White "Papadopoulos, Nikolaos"]
[Black "Quparadze, Giga"]
[Result "1-0"]
[ECO "B48"]
[WhiteElo "2258"]
[BlackElo "2517"]
[Annotator "ChessBase"]
[PlyCount "119"]
[EventDate "2018.08.06"]
[EventType "swiss"]
[EventCountry "GRE"]
[SourceTitle "playchess.com"]
[Source "ChessBase"]
[SourceQuality "1"]
[TimeControl "40/5400+30:900+30"]

1. e4 {[%emt 0:00:30]} c5 {[%emt 0:00:04]} 2. Nf3 {[%emt 0:00:31]} Nc6 {[%emt 0:00:29]} 3. d4 {[%emt 0:01:05]} cxd4 {[%emt 0:00:04]} 4. Nxd4 {[%emt 0:00:10]} Qc7 {[%emt 0:00:03]} 5. Nc3 {[%emt 0:01:18]} e6 {[%emt 0:00:04]} 6. Be3 {[%emt 0:02:22]} a6 {[%emt 0:00:07]} 7. Qf3 {[%emt 0:01:56]} Nf6 {[%emt 0:01:30]} 8. O-O-O {[%emt 0:00:57]} Ne5 {[%emt 0:00:41]} 9. Qg3 {[%emt 0:01:51]} b5 {[%emt 0:01:02]} 10. f4 {[%emt 0:10:09]} Neg4 {[%emt 0:00:04]} 11. Bg1 {[%emt 0:04:42]} b4 {[%emt 0:00:47]} 12. Na4 {[%emt 0:04:48]} Nh6 {[%emt 0:00:16]} 13. e5 {[%emt 0:01:52]} Ne4 {[%emt 0:01:30]} 14. Qe1 {[%emt 0:10:03]} Bb7 {[%emt 0:00:19]} 15. Bd3 {[%emt 0:04:37]} d5 {[%emt 0:03:46]} 16. exd6 {[%emt 0:12:36]} Nxd6 {[%emt 0:04:04]} 17. Bf2 {[%emt 0:00:39]} Be7 {[%emt 0:01:26]} 18. Bh4 {[%emt 0:11:56]} Bxh4 {[%emt 0:01:30]} 19. Qxh4 {[%emt 0:00:53]} O-O {[%emt 0:01:04]} 20. Rhe1 {[%emt 0:00:43]} Qa5 {[%emt 0:11:42]} 21. b3 {[%emt 0:02:00]} Nb5 {[%emt 0:07:14]} 22. Re5 {[%emt 0:01:14]} Bd5 {[%emt 0:00:36]} 23. Rg5 {[%emt 0:02:12]} f6 {[%emt 0:12:18]} 24. Qxh6 {[%emt 0:01:04]} fxg5 {[%emt 0:00:02]} 25. Qxh7+ {[%emt 0:02:51]} Kf7 {[%emt 0:00:05]} 26. Qg6+ {[%emt 0:00:41]} Ke7 {[%emt 0:00:33]} 27. Qxg5+ {[%emt 0:02:55]} Rf6 {[%emt 0:00:04]} 28. Qxg7+ {[%emt 0:00:49]} Rf7 {[%emt 0:00:03]} 29. Qg5+ {[%emt 0:00:54]} Rf6 {[%emt 0:00:14]} 30. Qg7+ {[%emt 0:07:08]} Rf7 {[%emt 0:00:04]} 31. Qg5+ {[%emt 0:03:55]} Rf6 {[%emt 0:02:40]} 32. f5 {[%emt 0:03:58]} Nxd4 {[%emt 0:01:38]} 33. Qg7+ {[%emt 0:00:03]} Rf7 {[%emt 0:00:04]} 34. f6+ {[%emt 0:01:26]} Kd6 {[%emt 0:03:53]} 35. Qxf7 {[%emt 0:00:03]} Qc7 {[%emt 0:00:03]} 36. Qxc7+ {[%emt 0:01:24]} Kxc7 {[%emt 0:00:03]} 37. Bc4 {[%emt 0:00:58]} Bxc4 {[%emt 0:00:14]} 38. Rxd4 {[%emt 0:00:23]} Bd5 {[%emt 0:00:03]} 39. g4 {[%emt 0:00:25]} a5 {[%emt 0:00:03]} 40. g5 {[%emt 0:00:00]} Rf8 {[%emt 0:00:00]} 41. c3 {[%emt 0:01:37]} bxc3 {[%emt 0:00:19]} 42. Nxc3 {[%emt 0:01:40]} Bf3 {[%emt 0:00:03]} 43. Rf4 {[%emt 0:00:55]} Bh5 {[%emt 0:00:04]} 44. Ne4 {[%emt 0:04:24]} Bg6 {[%emt 0:00:06]} 45. Ng3 {[%emt 0:00:22]} Kd6 {[%emt 0:00:22]} 46. h4 {[%emt 0:00:16]} Ke5 {[%emt 0:00:04]} 47. Ra4 {[%emt 0:00:23]} Rc8+ {[%emt 0:00:15]} 48. Rc4 {[%emt 0:00:47]} Rh8 {[%emt 0:00:07]} 49. a3 {[%emt 0:01:46]} Bd3 {[%emt 0:00:12]} 50. Ra4 {[%emt 0:02:23]} Bg6 {[%emt 0:00:04]} 51. h5 {[%emt 0:01:21]} Bxh5 {[%emt 0:00:04]} 52. Rxa5+ {[%emt 0:00:21]} Kd4 {[%emt 0:00:07]} 53. Kd2 {[%emt 0:01:30]} Bg6 {[%emt 0:00:34]} 54. Ra4+ {[%emt 0:01:41]} Ke5 {[%emt 0:00:12]} 55. Ke3 {[%emt 0:00:17]} Rc8 {[%emt 0:00:47]} 56. Ra5+ {[%emt 0:00:23]} Kd6 {[%emt 0:00:05]} 57. Ne4+ {[%emt 0:00:08]} Kd7 {[%emt 0:00:03]} 58. Ra7+ {[%emt 0:00:20]} Kc6 {[%emt 0:00:05]} 59. Rg7 {[%emt 0:00:29]} Bf5 {[%emt 0:00:04]} 60. Ng3 1-0

[Event "27th Kavala Open 2018"]
[Site "Kavala"]
[Date "2018.08.06"]
[Round "3"]
[White "Ladopoulos, Dimitrios"]
[Black "Mu, Ke"]
[Result "1/2-1/2"]
[ECO "A49"]
[WhiteElo "2191"]
[BlackElo "2446"]
[Annotator "NA"]
[PlyCount "122"]
[EventDate "2018.08.06"]
[EventType "swiss"]
[EventCountry "GRE"]
[SourceTitle "playchess.com"]
[Source "ChessBase"]
[SourceQuality "1"]
[TimeControl "40/5400+30:900+30"]

1. Nf3 {[%emt 0:01:26]} Nf6 {[%emt 0:00:08]} 2. d4 {[%emt 0:00:14]} g6 {[%emt 0:00:29]} 3. g3 {[%emt 0:00:28]} Bg7 {[%emt 0:00:08]} 4. Bg2 {[%emt 0:00:06]} O-O {[%emt 0:00:04]} 5. O-O {[%emt 0:00:49]} d6 {[%emt 0:00:05]} 6. c4 {[%emt 0:03:05]} Nc6 {[%emt 0:00:06]} 7. Nc3 {[%emt 0:00:45]} Rb8 {[%emt 0:00:12]} 8. d5 {[%emt 0:13:57]} Na5 {[%emt 0:00:05]} 9. Nd2 {[%emt 0:00:03]} c5 {[%emt 0:00:06]} 10. e4 {[%emt 0:01:34]} a6 {[%emt 0:00:13]} 11. a4 {[%emt 0:00:26]} e5 {[%emt 0:03:53]} 12. dxe6 {[%emt 0:09:39]} Bxe6 {[%emt 0:00:05]} 13. b3 {[%emt 0:05:05]} Ng4 {[%emt 0:09:14]} 14. Qc2 {[%emt 0:02:45]} Nc6 {[%emt 0:01:43]} 15. Bb2 {[%emt 0:06:47]} Nd4 {[%emt 0:01:34]} 16. Qd1 {[%emt 0:04:48]} Ne5 {[%emt 0:02:27]} 17. Nd5 {[%emt 0:01:52]} Bg4 {[%emt 0:03:22]} 18. Qb1 {[%emt 0:04:22]} b5 {[%emt 0:10:55]} 19. cxb5 {[%emt 0:04:32]} axb5 {[%emt 0:00:05]} 20. Bxd4 cxd4 {[%emt 0:00:06]} 21. a5 {[%emt 0:02:57]} b4 {[%emt 0:04:01]} 22. f3 {[%emt 0:05:13]} Be6 {[%emt 0:00:44]} 23. f4 {[%emt 0:01:50]} Nd7 {[%emt 0:02:13]} 24. Nc4 {[%emt 0:02:54]} Bxd5 {[%emt 0:00:48]} 25. exd5 {[%emt 0:00:06]} Nc5 {[%emt 0:00:03]} 26. Qd1 {[%emt 0:03:17]} d3 {[%emt 0:00:32]} 27. Ra2 {[%emt 0:00:22]} Qf6 {[%emt 0:00:12]} 28. Rf3 {[%emt 0:02:35]} Rfe8 {[%emt 0:02:35]} 29. Bf1 {[%emt 0:03:10]} Qd4+ {[%emt 0:00:14]} 30. Kg2 {[%emt 0:01:03]} Qxd5 {[%emt 0:00:05]} 31. Bxd3 {[%emt 0:01:23]} Ne6 {[%emt 0:00:05]} 32. a6 {[%emt 0:10:17]} Qc6 {[%emt 0:04:29]} 33. Kh3 {[%emt 0:00:51]} Ra8 {[%emt 0:01:45]} 34. Re3 {[%emt 0:01:53]} Bd4 {[%emt 0:00:06]} 35. Re1 {[%emt 0:01:51]} Ra7 {[%emt 0:01:13]} 36. Na5 {[%emt 0:04:07]} Qc8 {[%emt 0:04:22]} 37. Kg2 {[%emt 0:00:08]} Rae7 {[%emt 0:00:03]} 38. Rf1 {[%emt 0:00:55]} Nc7 {[%emt 0:02:04]} 39. Bc4 {[%emt 0:01:09]} Bc5 {[%emt 0:04:14]} 40. Nb7 {[%emt 0:00:00]} d5 {[%emt 0:00:00]} 41. Bd3 {[%emt 0:04:20]} Ne6 {[%emt 0:02:27]} 42. Rc2 {[%emt 0:01:26]} Rc7 {[%emt 0:00:08]} 43. Bb5 {[%emt 0:01:03]} Rf8 {[%emt 0:00:04]} 44. Qxd5 {[%emt 0:00:37]} Ba7 {[%emt 0:00:05]} 45. Rc4 {[%emt 0:01:09]} Nd4 {[%emt 0:12:50]} 46. Nd6 {[%emt 0:01:29]} Qb8 {[%emt 0:00:04]} 47. Rxd4 {[%emt 0:07:20]} Bxd4 {[%emt 0:00:05]} 48. Qxd4 {[%emt 0:00:11]} Rd8 {[%emt 0:00:05]} 49. Rf2 {[%emt 0:00:36]} Re7 {[%emt 0:01:15]} 50. Rd2 {[%emt 0:01:11]} Re6 {[%emt 0:00:08]} 51. Qxb4 {[%emt 0:01:25]} Rexd6 {[%emt 0:00:06]} 52. Rxd6 {[%emt 0:00:04]} Rxd6 {[%emt 0:00:02]} 53. Qc5 {[%emt 0:01:21]} Qa8+ {[%emt 0:00:48]} 54. Kh3 {[%emt 0:00:27]} Rd5 {[%emt 0:01:38]} 55. Qc6 {[%emt 0:00:27]} Rh5+ {[%emt 0:00:20]} 56. Kg2 {[%emt 0:00:08]} Qa7 {[%emt 0:03:03]} 57. Bc4 {[%emt 0:00:07]} Qe3 {[%emt 0:01:13]} 58. Qb7 {[%emt 0:01:00]} Qd2+ {[%emt 0:00:27]} 59. Kf3 {[%emt 0:00:09]} Qd1+ {[%emt 0:01:43]} 60. Kg2 {[%emt 0:00:10]} Qd2+ {[%emt 0:00:18]} 61. Kf3 {[%emt 0:00:09]} Qd1+ {[%emt 0:00:08]} 1/2-1/2

[Event "27th Kavala Open 2018"]
[Site "Kavala"]
[Date "2018.08.06"]
[Round "3"]
[White "Iskos, Alexandros"]
[Black "Ni, Shiqun"]
[Result "1/2-1/2"]
[ECO "C42"]
[WhiteElo "2179"]
[BlackElo "2436"]
[Annotator "NA"]
[PlyCount "53"]
[EventDate "2018.08.06"]
[EventType "swiss"]
[EventCountry "GRE"]
[SourceTitle "playchess.com"]
[Source "ChessBase"]
[SourceQuality "1"]
[TimeControl "40/5400+30:900+30"]

1. e4 {[%emt 0:00:03]} e5 {[%emt 0:01:33]} 2. Nf3 {[%emt 0:00:17]} Nf6 {[%emt 0:00:05]} 3. Nc3 {[%emt 0:00:20]} Bb4 {[%emt 0:00:07]} 4. Nxe5 {[%emt 0:00:11]} O-O {[%emt 0:00:06]} 5. Nd3 {[%emt 0:00:05]} Bxc3 {[%emt 0:00:04]} 6. dxc3 {[%emt 0:00:04]} Nxe4 {[%emt 0:00:06]} 7. Be2 {[%emt 0:00:03]} d6 {[%emt 0:00:23]} 8. O-O {[%emt 0:00:46]} Re8 {[%emt 0:00:32]} 9. Nf4 {[%emt 0:00:23]} Nc6 {[%emt 0:04:17]} 10. c4 {[%emt 0:11:08]} Bf5 {[%emt 0:02:36]} 11. c3 {[%emt 0:04:55]} Nf6 {[%emt 0:06:50]} 12. Nd5 {[%emt 0:07:33]} Nxd5 {[%emt 0:01:39]} 13. cxd5 {[%emt 0:00:13]} Ne5 {[%emt 0:01:44]} 14. f4 {[%emt 0:03:33]} Nd7 {[%emt 0:00:45]} 15. Bf3 {[%emt 0:24:46]} Be4 {[%emt 0:18:13]} 16. Be3 {[%emt 0:04:59]} Nb6 {[%emt 0:14:48]} 17. Qd4 {[%emt 0:12:14]} Qe7 {[%emt 0:09:36]} 18. Bxe4 {[%emt 0:01:59]} Qxe4 {[%emt 0:00:03]} 19. Qxe4 {[%emt 0:00:04]} Rxe4 {[%emt 0:00:07]} 20. Bxb6 {[%emt 0:00:02]} axb6 {[%emt 0:00:21]} 21. Rae1 {[%emt 0:00:03]} Rae8 {[%emt 0:04:37]} 22. Rxe4 {[%emt 0:01:19]} Rxe4 {[%emt 0:00:02]} 23. g3 {[%emt 0:00:04]} Re3 {[%emt 0:04:59]} 24. c4 {[%emt 0:10:06]} Re4 {[%emt 0:13:40]} 25. b3 {[%emt 0:00:09]} Re2 {[%emt 0:02:18]} 26. Rf2 {[%emt 0:00:08]} Re1+ {[%emt 0:00:05]} 27. Rf1 {[%emt 0:00:12]} 1/2-1/2

[Event "27th Kavala Open 2018"]
[Site "Kavala"]
[Date "2018.08.06"]
[Round "3"]
[White "Loutragotis, Dimitrios"]
[Black "Tsolakidou, Stavroula"]
[Result "1-0"]
[ECO "B68"]
[WhiteElo "2169"]
[BlackElo "2418"]
[Annotator "NA"]
[PlyCount "85"]
[EventDate "2018.08.06"]
[EventType "swiss"]
[EventCountry "GRE"]
[SourceTitle "playchess.com"]
[Source "ChessBase"]
[SourceQuality "1"]
[TimeControl "40/5400+30:900+30"]

1. e4 {[%emt 0:00:04]} c5 {[%emt 0:09:50]} 2. Nf3 {[%emt 0:00:06]} d6 {[%emt 0:00:44]} 3. d4 {[%emt 0:00:07]} cxd4 {[%emt 0:00:05]} 4. Nxd4 {[%emt 0:00:06]} Nf6 {[%emt 0:00:08]} 5. Nc3 {[%emt 0:00:06]} Nc6 {[%emt 0:00:23]} 6. Bg5 {[%emt 0:00:46]} e6 {[%emt 0:00:21]} 7. Qd2 {[%emt 0:00:13]} a6 {[%emt 0:01:14]} 8. O-O-O {[%emt 0:00:22]} Be7 {[%emt 0:00:53]} 9. f4 {[%emt 0:01:25]} Bd7 {[%emt 0:06:48]} 10. Nf3 {[%emt 0:05:53]} b5 {[%emt 0:09:07]} 11. Bd3 {[%emt 0:05:46]} b4 {[%emt 0:11:54]} 12. Ne2 {[%emt 0:03:15]} Qa5 {[%emt 0:00:38]} 13. Kb1 {[%emt 0:00:35]} Qc5 {[%emt 0:00:38]} 14. h3 {[%emt 0:06:08]} a5 {[%emt 0:03:05]} 15. Rhe1 {[%emt 0:10:13]} h6 {[%emt 0:02:19]} 16. Bh4 {[%emt 0:01:19]} Rd8 {[%emt 0:09:42]} 17. Nc1 {[%emt 0:06:07]} a4 {[%emt 0:01:55]} 18. Bf2 {[%emt 0:03:27]} Qa5 {[%emt 0:00:12]} 19. g4 {[%emt 0:00:26]} a3 {[%emt 0:07:26]} 20. b3 {[%emt 0:08:40]} g5 {[%emt 0:01:37]} 21. Ne2 {[%emt 0:11:04]} gxf4 {[%emt 0:02:30]} 22. Qxf4 {[%emt 0:00:47]} e5 {[%emt 0:07:59]} 23. Qe3 {[%emt 0:03:03]} Be6 {[%emt 0:06:02]} 24. g5 {[%emt 0:03:58]} Nd7 {[%emt 0:01:53]} 25. gxh6 {[%emt 0:03:50]} Bf8 {[%emt 0:00:05]} 26. Bh4 {[%emt 0:01:39]} f6 {[%emt 0:00:18]} 27. Nd2 {[%emt 0:05:01]} Rxh6 {[%emt 0:05:27]} 28. Bc4 {[%emt 0:01:54]} Nc5 {[%emt 0:02:14]} 29. Bxe6 {[%emt 0:04:03]} Nxe6 {[%emt 0:00:04]} 30. Bf2 {[%emt 0:00:18]} d5 {[%emt 0:00:38]} 31. h4 {[%emt 0:02:58]} Rd7 {[%emt 0:03:35]} 32. Qh3 {[%emt 0:00:48]} Ke7 {[%emt 0:04:23]} 33. Be3 {[%emt 0:02:45]} Rh8 {[%emt 0:00:31]} 34. Rf1 {[%emt 0:01:08]} Bh6 {[%emt 0:01:50]} 35. Qf5 {[%emt 0:02:21]} Bg7 {[%emt 0:00:19]} 36. h5 {[%emt 0:02:18]} Rf8 {[%emt 0:00:27]} 37. h6 {[%emt 0:00:47]} Bh8 {[%emt 0:00:02]} 38. Nc4 {[%emt 0:02:30]} Qb5 {[%emt 0:01:07]} 39. exd5 {[%emt 0:00:24]} Rxd5 {[%emt 0:00:10]} 40. Qh7+ {[%emt 0:00:00]} Ke8 {[%emt 0:00:00]} 41. Nd6+ {[%emt 0:04:58]} Rxd6 {[%emt 0:02:47]} 42. Rxd6 {[%emt 0:00:08]} Ncd8 {[%emt 0:01:41]} 43. Rfd1 {[%emt 0:01:04]} 1-0

[Event "27th Kavala Open 2018"]
[Site "Kavala"]
[Date "2018.08.06"]
[Round "3"]
[White "Koutlas, Nikolaos"]
[Black "Schitco, Ivan"]
[Result "1/2-1/2"]
[ECO "A22"]
[WhiteElo "1711"]
[BlackElo "2377"]
[Annotator "NA"]
[PlyCount "53"]
[EventDate "2018.08.06"]
[EventType "swiss"]
[EventCountry "GRE"]
[SourceTitle "playchess.com"]
[Source "ChessBase"]
[SourceQuality "1"]
[TimeControl "40/5400+30:900+30"]

1. c4 {[%emt 0:00:04]} e5 {[%emt 0:00:33]} 2. Nc3 {[%emt 0:00:09]} Nf6 {[%emt 0:00:37]} 3. g3 {[%emt 0:00:17]} Nc6 {[%emt 0:00:17]} 4. Bg2 {[%emt 0:00:27]} Bc5 {[%emt 0:00:48]} 5. e3 {[%emt 0:00:27]} d5 {[%emt 0:00:14]} 6. cxd5 {[%emt 0:04:32]} Nb4 {[%emt 0:00:10]} 7. d3 {[%emt 0:01:38]} Nbxd5 {[%emt 0:06:20]} 8. Nxd5 {[%emt 0:03:23]} Nxd5 {[%emt 0:00:06]} 9. a3 {[%emt 0:01:46]} O-O {[%emt 0:04:08]} 10. b4 {[%emt 0:03:39]} Bb6 {[%emt 0:01:57]} 11. Nf3 {[%emt 0:03:00]} a5 {[%emt 0:01:46]} 12. bxa5 {[%emt 0:05:13]} Bxa5+ {[%emt 0:03:57]} 13. Bd2 {[%emt 0:00:15]} Bxd2+ 14. Qxd2 {[%emt 0:01:20]} Qf6 {[%emt 0:09:49]} 15. O-O {[%emt 0:02:44]} Bg4 {[%emt 0:01:12]} 16. Nd4 {[%emt 0:02:49]} exd4 {[%emt 0:09:01]} 17. Bxd5 {[%emt 0:00:09]} c6 {[%emt 0:00:30]} 18. Bg2 {[%emt 0:00:43]} dxe3 {[%emt 0:01:41]} 19. Qxe3 {[%emt 0:04:11]} Rfd8 {[%emt 0:04:16]} 20. Rab1 {[%emt 0:02:22]} Rxa3 {[%emt 0:13:36]} 21. Rxb7 {[%emt 0:00:58]} Raxd3 {[%emt 0:00:20]} 22. Qe4 {[%emt 0:01:20]} Bf3 {[%emt 0:10:49]} 23. Bxf3 {[%emt 0:01:17]} Rxf3 {[%emt 0:01:54]} 24. Kg2 {[%emt 0:16:51]} Rc3 {[%emt 0:03:09]} 25. Rd1 {[%emt 0:01:41]} Rf8 {[%emt 0:04:38]} 26. Rdd7 {[%emt 0:03:33]} Rc5 {[%emt 0:05:14]} 27. Qe7 {[%emt 0:04:44]} 1/2-1/2